bitfinex/quotes_ETHUSD_20251031
["timestamp","ask_amount","ask_price","bid_price","bid_amount"]
[1761902556127,1.8185597,3849.2,3849.1,0.13160001]
[1761902557358,1.8177597,3849.2,3849.1,0.13160001]
[1761902561892,1.81813502,3850.1,3849.1,0.13160001]
[1761902562044,1.81851245,3849.3,3849.2,0.02597942]
[1761902562446,1.81851245,3849.3,3849.2,0.15557942]
[1761902563480,1.81851245,3849.3,3849.2,0.1296]
[1761902566500,2.27411245,3849.3,3849.2,0.1296]
[1761902566996,1.81951245,3849.3,3849.2,0.1296]
[1761902567691,2.27411245,3849.3,3849.2,0.1296]
[1761902568195,1.9481597,3849.2,3849.1,0.00200001]
[1761902568392,2.9013597,3849.2,3849.1,0.00200001]
[1761902568768,1.9481597,3849.2,3849.1,0.00200001]
[1761902569461,2.4027597,3849.2,3849.1,0.00200001]
[1761902569786,1.9481597,3849.2,3849.1,0.00200001]
[1761902571106,1.8185597,3849.2,3849.1,0.00200001]
[1761902571389,1.8185597,3849.2,3849.1,0.13160001]
[1761902578606,2.2930597,3849.2,3849.1,0.13160001]
[1761902578813,7.99472449,3849.2,3849.1,0.00200001]
[1761902579094,3.12926332,3849.2,3849.1,0.00200001]
[1761902579702,2.65686332,3849.2,3849.1,0.00200001]
[1761902580527,3.12926332,3849.2,3849.1,0.00200001]
[1761902580894,2.18236332,3849.2,3849.1,0.00200001]
[1761902581100,1.8185597,3849.2,3849.1,0.00200001]
[1761902581618,2.7654597,3849.2,3849.1,0.00200001]
[1761902581818,1.8185597,3849.2,3849.1,0.00200001]
[1761902582736,1.8177597,3849.2,3849.1,0.00200001]
[1761902583735,1.8177597,3849.2,3849.1,0.0279801]
[1761902583936,1.8177597,3849.2,3849.1,0.00200001]
[1761902585304,1.8187597,3849.2,3849.1,0.00200001]
[1761902585636,2.7656597,3849.2,3849.1,0.00200001]
[1761902586340,2.2932597,3849.2,3849.1,0.00200001]
[1761902586741,1.8187597,3849.2,3849.1,0.00200001]
[1761902588765,1.8187597,3849.2,3849.1,0.13160001]
[1761902591619,2.2932597,3849.2,3849.1,0.13160001]
[1761902592470,2.7656597,3849.2,3849.1,0.13160001]
[1761902592866,2.2932597,3849.2,3849.1,0.13160001]
[1761902593441,2.7656597,3849.2,3849.1,0.13160001]
[1761902595650,2.7656597,3849.2,3849.1,0.00200001]
[1761902595846,3.7719288,3849.2,3849.1,0.00200001]
[1761902597053,1.8187597,3849.2,3849.1,0.00200001]
[1761902599489,2.3055597,3849.2,3849.1,0.00200001]
[1761902600591,1.8187597,3849.2,3849.1,0.00200001]
[1761902601490,0.001,3849.2,3849.1,6.90521583]
[1761902601692,0.001,3849.2,3849.1,6.87923574]
[1761902601991,0.001,3849.2,3849.1,7.7490335]
[1761902602200,0.001,3849.2,3849.1,2.27147777]
[1761902602380,0.001,3849.2,3849.1,1.40168001]
[1761902602783,0.001,3849.2,3849.1,6.87923574]
[1761902603367,0.001,3849.2,3849.1,1.40168001]
[1761902607684,0.0002,3849.2,3849.1,1.40168001]
[1761902611399,0.0002,3849.2,3849.1,1.53128001]
[1761902611603,0.0002,3849.2,3849.1,1.68440801]
[1761902615422,2.7442597,3849.2,3849.1,0.28472801]
[1761902615600,2.7442597,3849.2,3849.1,0.13160001]
[1761902616218,1.8187597,3849.2,3849.1,0.13160001]
[1761902618147,0.0002,3849.2,3849.1,0.13160001]
[1761902618648,1.8187597,3849.2,3849.1,0.13160001]
[1761902619631,0.0002,3849.2,3849.1,0.13160001]
[1761902619815,1.8187597,3849.2,3849.1,0.13160001]
[1761902621018,0.0002,3849.2,3849.1,0.13160001]
[1761902622648,1.8187597,3849.2,3849.1,0.13160001]
[1761902623210,0.0002,3849.2,3849.1,0.13160001]
[1761902624044,1.8187597,3849.2,3849.1,0.13160001]
[1761902626947,0.0002,3849.2,3849.1,0.13160001]
[1761902632992,1.81894229,3849.3,3849.1,0.13160001]
[1761902633655,1.8185597,3849.2,3849.1,0.13160001]
[1761902634155,2.3117597,3849.2,3849.1,0.13160001]
[1761902634466,2.7737597,3849.2,3849.1,0.13160001]
[1761902634832,2.3117597,3849.2,3849.1,0.13160001]
[1761902635327,2.7737597,3849.2,3849.1,0.13160001]
[1761902638298,3.78077928,3849.2,3849.1,0.13160001]
[1761902640498,2.7737597,3849.2,3849.1,0.13160001]
[1761902640899,0.4932,3849.2,3849.1,0.13160001]
[1761902641074,0.9552,3849.2,3849.1,0.00200001]
[1761902641279,2.7737597,3849.2,3849.1,0.00200001]
[1761902641567,0.0004,3849.3,3849.1,0.00200001]
[1761902641770,0.0004,3849.3,3849.1,4.86926183]
[1761902641976,0.0004,3849.3,3849.2,0.5129056]
[1761902644007,0.0004,3849.3,3849.2,0.48692618]
[1761902644156,0.0004,3849.3,3849.1,0.00200001]
[1761902647130,2.3117597,3849.2,3849.1,0.00200001]
[1761902647486,7.64102152,3849.2,3849.1,0.00200001]
[1761902647683,2.7737597,3849.2,3849.1,0.00200001]
[1761902647887,2.3117597,3849.2,3849.1,0.00200001]
[1761902648114,1.81892016,3849.3,3849.1,0.00200001]
[1761902648539,0.0004,3849.3,3849.1,0.0279801]
[1761902649440,0.0004,3849.3,3849.2,0.02597942]
[1761902649640,1.81891245,3849.3,3849.2,0.02597942]
[1761902649836,0.0004,3849.3,3849.2,0.02597942]
[1761902650024,1.81891245,3849.3,3849.2,0.02597942]
[1761902650226,1.8185597,3849.2,3849.1,0.00200001]
[1761902650551,2.7737597,3849.2,3849.1,0.00200001]
[1761902650957,2.7737597,3849.2,3849.1,0.13160001]
[1761902651571,2.3117597,3849.2,3849.1,0.13160001]
[1761902651724,0.0004,3849.3,3849.1,0.13160001]
[1761902651925,0.0004,3849.3,3849.2,0.02597942]
[1761902652519,1.81891245,3849.3,3849.1,0.13160001]
[1761902652722,1.8185597,3849.2,3849.1,0.13160001]
[1761902652951,1.81892336,3849.3,3849.1,0.13160001]
[1761902654248,1.8185597,3849.2,3849.1,0.13160001]
[1761902654627,1.81891801,3849.3,3849.1,0.13160001]
[1761902655427,0.0004,3849.3,3849.2,0.02597942]
[1761902658249,1.81806713,3849.4,3849.2,0.02597942]
[1761902658575,1.81806713,3849.4,3849.3,0.1296]
[1761902658729,0.001,3849.6,3849.3,0.1296]
[1761902658925,1.81844053,3849.5,3849.4,0.02597807]
[1761902659359,1.81844053,3849.5,3849.4,0.1296]
[1761902660085,0.001,3849.6,3849.2,4.86726182]
[1761902660252,0.001,3849.6,3849.3,0.48692618]
[1761902661171,0.001,3849.6,3849.1,0.00200001]
[1761902662666,1.81938057,3849.6,3849.1,0.00200001]
[1761902662833,0.001,3849.6,3849.1,0.00200001]
[1761902663460,2.28896064,3849.5,3849.1,0.00200001]
[1761902663679,1.81846064,3849.5,3849.1,0.00200001]
[1761902663872,0.001,3849.6,3849.1,0.00200001]
[1761902664103,1.81842371,3849.5,3849.1,0.00200001]
[1761902664469,1.81849252,3849.4,3849.1,0.00200001]
[1761902666613,1.81941696,3849.6,3849.1,0.00200001]
[1761902666900,2.28991696,3849.6,3849.1,0.00200001]
[1761902667201,1.81845161,3849.5,3849.1,0.00200001]
[1761902669611,2.28895161,3849.5,3849.1,0.00200001]
[1761902670001,2.28895161,3849.5,3849.4,0.1296]
[1761902670709,2.78775161,3849.5,3849.4,0.1296]
[1761902673623,7.65501343,3849.5,3849.4,0.1296]
[1761902673828,8.61550965,3849.5,3849.4,0.1296]
[1761902674430,1.8185597,3849.2,3849.1,0.00200001]
[1761902674632,7.65512152,3849.2,3849.1,0.00200001]
[1761902674819,9.05480152,3849.2,3849.1,0.00200001]
[1761902675014,10.23818034,3849.2,3849.1,0.00200001]
[1761902675232,10.34230673,3849.2,3849.1,0.00200001]
[1761902676626,10.74781073,3849.2,3849.1,0.00200001]
[1761902677600,10.34230673,3849.2,3849.1,0.00200001]
[1761902678156,9.28852791,3849.2,3849.1,0.00200001]
[1761902678630,4.42126609,3849.2,3849.1,0.00200001]
[1761902679232,4.29166609,3849.2,3849.1,0.00200001]
[1761902682060,4.29166609,3849.2,3849.1,0.13160001]
[1761902682061,2.3173597,3849.2,3849.1,0.13160001]
[1761902682351,1.8185597,3849.2,3849.1,0.13160001]
[1761902682552,2.3173597,3849.2,3849.1,0.13160001]
[1761902682727,2.7878597,3849.2,3849.1,0.13160001]
[1761902683453,2.7870597,3849.2,3849.1,0.13160001]
[1761902688758,0.001,3849.6,3849.1,4.86926183]
[1761902688964,0.001,3849.6,3849.2,0.5129056]
[1761902689146,1.81846396,3849.5,3849.2,0.5129056]
[1761902689561,1.81938675,3849.6,3849.2,0.5129056]
[1761902689767,0.001,3849.6,3849.2,0.5129056]
[1761902689973,1.81841897,3849.5,3849.2,0.5129056]
[1761902690168,1.81841897,3849.5,3849.3,0.53821674]
[1761902690846,1.81842483,3849.5,3849.3,0.53821674]
[1761902691378,0.001,3849.6,3849.3,0.53821674]
[1761902691678,0.4666,3849.4,3849.3,0.53821674]
[1761902691975,0.4666,3849.4,3849.1,0.00200001]
[1761902692165,2.28506521,3849.4,3849.1,0.00200001]
[1761902692670,1.81842023,3849.5,3849.1,0.00200001]
[1761902693264,1.81846722,3849.4,3849.1,0.00200001]
[1761902693467,1.81842328,3849.5,3849.1,0.00200001]
[1761902693961,1.81841797,3849.5,3849.1,0.00200001]
[1761902695082,1.81846746,3849.4,3849.1,0.00200001]
[1761902695479,2.28888976,3849.6,3849.1,0.00200001]
[1761902696169,1.8185597,3849.2,3849.1,0.00200001]
[1761902696368,0.4695,3849.5,3849.1,0.00200001]
[1761902696764,2.28793246,3849.5,3849.1,0.00200001]
[1761902696951,1.81855316,3849.3,3849.1,0.00200001]
[1761902697386,1.8185597,3849.2,3849.1,0.00200001]
[1761902697788,2.2851597,3849.2,3849.1,0.00200001]
[1761902698289,2.7546597,3849.2,3849.1,0.00200001]
[1761902698877,2.7546597,3849.2,3849.1,0.13160001]
[1761902705115,0.001,3849.6,3849.1,0.00200001]
[1761902705793,0.001,3849.6,3849.1,0.18666644]
[1761902706110,0.001,3849.6,3849.2,0.02597942]
[1761902706476,0.001,3849.6,3849.3,5.47716398]
[1761902706677,0.001,3849.6,3849.4,0.02597807]
[1761902707392,0.001,3849.6,3849.1,0.18666644]
[1761902707598,0.001,3849.6,3849.2,0.15863464]
[1761902708109,1.81848653,3849.4,3849.1,0.00200001]
[1761902708478,1.81768653,3849.4,3849.1,0.00200001]
[1761902708813,0.4705,3849.6,3849.1,0.00200001]
[1761902709017,0.001,3849.6,3849.1,0.00200001]
[1761902709316,0.001,3849.6,3849.2,0.02597942]
[1761902709483,0.001,3849.6,3849.2,0.75835831]
[1761902709810,0.001,3849.6,3849.2,2.57691085]
[1761902710182,0.001,3849.6,3849.2,0.73237889]
[1761902710683,0.001,3849.6,3849.2,2.55092706]
[1761902710883,0.001,3849.6,3849.2,0.73237889]
[1761902711097,0.001,3849.6,3849.3,0.76112229]
[1761902711594,0.001,3849.6,3849.1,0.00200001]
[1761902712820,0.001,3849.4,3849.1,0.00200001]
[1761902713239,0.001,3849.4,3849.2,0.02597942]
[1761902713522,0.001,3849.4,3849.3,0.02597874]
[1761902714715,0.001,3849.4,3849.3,1.97409119]
[1761902715015,0.001,3849.4,3849.3,2.46755256]
[1761902715408,0.001,3849.4,3849.3,7.97069528]
[1761902715581,0.001,3849.4,3849.3,9.34439654]
[1761902716287,0.001,3849.4,3849.3,9.74990054]
[1761902718194,0.001,3849.4,3849.3,2.55828278]
[1761902718400,0.001,3849.4,3849.3,7.95736683]
[1761902718698,0.001,3849.4,3849.3,9.74990054]
[1761902720047,0.001,3849.4,3849.3,9.34439654]
[1761902720422,0.001,3849.4,3849.3,9.74990054]
[1761902723668,0.001,3849.4,3849.3,9.34439654]
[1761902724218,0.001,3849.4,3849.3,2.04872011]
[1761902724418,0.4932,3849.4,3849.3,1.52928]
[1761902724730,0.978,3849.4,3849.3,1.52928]
[1761902725858,0.978,3849.4,3849.1,0.00200001]
[1761902726054,0.4922,3849.2,3849.1,0.00200001]
[1761902726460,0.977,3849.2,3849.1,0.00200001]
[1761902729777,2.7955597,3849.2,3849.1,0.00200001]
[1761902731050,0.977,3849.2,3849.1,0.00200001]
[1761902731251,2.7955597,3849.2,3849.1,0.00200001]
[1761902732545,0.977,3849.2,3849.1,0.00200001]
[1761902732954,0.001,3849.4,3849.1,0.00200001]
[1761902733261,0.4922,3849.2,3849.1,0.0279801]
[1761902733482,0.001,3849.4,3849.1,0.00200001]
[1761902733682,0.4848,3849.3,3849.1,0.00200001]
[1761902733983,0.4922,3849.2,3849.1,0.00200001]
[1761902735744,0.4922,3849.2,3849.1,0.13160001]
[1761902736574,0.977,3849.2,3849.1,0.13160001]
[1761902736757,0.4922,3849.2,3849.1,0.13160001]
[1761902736971,0.001,3849.4,3849.1,0.13160001]
[1761902737168,0.001,3849.4,3849.3,0.1296]
[1761902738966,0.4932,3849.4,3849.3,0.1296]
[1761902740176,0.978,3849.4,3849.3,0.1296]
[1761902742320,2.79646521,3849.4,3849.3,0.1296]
[1761902743218,0.978,3849.4,3849.3,0.1296]
[1761902743605,2.79646521,3849.4,3849.3,0.1296]
[1761902745129,3.07631173,3849.4,3849.3,0.1296]
[1761902746123,1.8185597,3849.2,3849.1,0.13160001]
[1761902746423,2.3107597,3849.2,3849.1,0.13160001]
[1761902746732,0.977,3849.2,3849.1,0.13160001]
[1761902747105,2.7955597,3849.2,3849.1,0.13160001]
[1761902747288,0.977,3849.2,3849.1,0.13160001]
[1761902747721,0.4922,3849.2,3849.1,0.13160001]
[1761902748029,0.977,3849.2,3849.1,0.13160001]
[1761902753066,0.001,3849.3,3849.1,0.13160001]
[1761902753250,0.4632,3849.3,3849.2,0.02597942]
[1761902753950,0.9361,3849.3,3849.1,0.13160001]
[1761902754158,0.4729,3849.2,3849.1,0.13160001]
[1761902754356,0.9351,3849.2,3849.1,0.13160001]
[1761902755848,2.7536597,3849.2,3849.1,0.13160001]
[1761902756358,0.9351,3849.2,3849.1,0.13160001]
[1761902757550,2.7536597,3849.2,3849.1,0.13160001]
[1761902758279,0.9351,3849.2,3849.1,0.13160001]
[1761902759069,0.9343,3849.2,3849.1,0.13160001]
[1761902759577,2.7528597,3849.2,3849.1,0.13160001]
[1761902760481,0.9343,3849.2,3849.1,0.13160001]
[1761902762986,2.7528597,3849.2,3849.1,0.13160001]
[1761902775599,8.07761435,3849.2,3849.1,0.00200001]
[1761902775803,8.98815421,3849.2,3849.1,0.00200001]
[1761902776006,1.8187487,3848.8,3848.7,0.002]
[1761902776312,2.4775487,3848.8,3848.7,0.002]
[1761902776504,3.43418163,3848.8,3848.7,0.002]
[1761902776701,4.21520891,3848.8,3848.7,0.002]
[1761902777232,3.43418163,3848.8,3848.7,0.002]
[1761902781343,2.9397487,3848.8,3848.7,0.002]
[1761902782522,2.4775487,3848.8,3848.7,0.002]
[1761902782705,2.9331487,3848.8,3848.7,0.002]
[1761902784307,2.9323487,3848.8,3848.7,0.002]
[1761902791456,2.4767487,3848.8,3848.7,0.002]
[1761902791844,2.9323487,3848.8,3848.7,0.002]
[1761902792960,3.45225973,3848.8,3848.7,0.002]
[1761902795192,4.85193973,3848.8,3848.7,0.002]
[1761902797859,2.85279995,3848.7,3848.6,1e-08]
[1761902798086,3.30839995,3848.7,3848.6,1e-08]
[1761902798520,4.70807995,3848.7,3848.6,1e-08]
[1761902798757,6.27139018,3848.7,3848.6,1e-08]
[1761902801061,6.37554016,3848.7,3848.6,1e-08]
[1761902803422,6.37554016,3848.7,3848.1,1e-08]
[1761902803423,1.81903227,3848.2,3848.1,1e-08]
[1761902803627,8.99053723,3848.2,3848.1,1e-08]
[1761902803790,10.30720036,3848.2,3848.1,1e-08]
[1761902803990,10.91156024,3848.2,3848.1,1e-08]
[1761902804922,10.60010352,3848.2,3848.1,1e-08]
[1761902805824,5.73268256,3848.2,3848.1,1e-08]
[1761902806132,10.60010352,3848.2,3848.1,1e-08]
[1761902808219,10.60010352,3848.2,3847.8,0.002]
[1761902808220,2.22467809,3847.9,3847.8,0.002]
[1761902808431,1.81969429,3846.8,3846.7,0.46856515]
[1761902808631,2.51359429,3846.8,3846.7,0.46856515]
[1761902808890,2.96919429,3846.8,3846.7,0.46856515]
[1761902809133,3.75064677,3846.8,3846.7,0.46856515]
[1761902809309,4.2705578,3846.8,3846.7,0.46856515]
[1761902809612,4.2697578,3846.8,3846.7,0.46856515]
[1761902810329,3.74984677,3846.8,3846.7,0.46856515]
[1761902810630,1.81997816,3846.2,3846.1,0.01]
[1761902810790,2.31647816,3846.2,3846.1,0.01]
[1761902811125,2.80467816,3846.2,3846.1,0.01]
[1761902811493,2.72202948,3846.1,3846.0,74.63564044]
[1761902811736,2.72202948,3846.1,3846.0,71.54547908]
[1761902811737,4.60990948,3846.1,3846.0,71.54547908]
[1761902812528,3.71620548,3846.1,3846.0,71.54547908]
[1761902812896,3.21970548,3846.1,3846.0,71.54547908]
[1761902813112,3.71620548,3846.1,3846.0,71.54547908]
[1761902813305,4.20440548,3846.1,3846.0,71.54547908]
[1761902813552,3.84580548,3846.1,3846.0,71.54547908]
[1761902813994,0.1296,3846.5,3846.0,74.15699062]
[1761902814305,0.78147691,3846.6,3846.0,74.15699062]
[1761902814834,1.82002548,3846.1,3846.0,74.15699062]
[1761902815720,2.80472548,3846.1,3846.0,71.54547908]
[1761902816625,1.82002548,3846.1,3846.0,71.54547908]
[1761902818232,1.81987123,3846.5,3846.0,71.54547908]
[1761902818635,1.82002548,3846.1,3846.0,71.54547908]
[1761902818837,1.8197889,3846.6,3846.0,74.15699062]
[1761902819036,1.81997826,3846.2,3846.0,74.15699062]
[1761902819561,0.40769864,3847.0,3846.0,74.15699062]
[1761902819937,1.81989568,3846.4,3846.0,74.15699062]
[1761902820237,1.81997966,3846.2,3846.0,74.15699062]
[1761902820438,0.97092805,3846.9,3846.1,2.61151154]
[1761902820657,0.89589864,3847.0,3846.1,7.4789325]
[1761902820658,1.81969429,3846.8,3846.1,7.4789325]
[1761902820824,2.22732247,3847.0,3846.1,7.4789325]
[1761902821031,4.86742096,3847.6,3846.1,7.4789325]
[1761902821032,1.81931593,3847.6,3846.1,7.4789325]
[1761902821366,0.78135886,3847.3,3846.2,2.61151154]
[1761902821527,1.81950509,3847.2,3846.2,2.61151154]
[1761902821864,1.81993084,3846.3,3846.2,2.61151154]
[1761902822046,1.81997816,3846.2,3846.1,2.61151154]
[1761902824324,0.1296,3846.6,3846.1,2.61151154]
[1761902824533,0.78245859,3846.8,3846.3,0.1296]
[1761902824725,0.78245859,3846.8,3846.3,2.74111154]
[1761902824942,1.81978393,3846.7,3846.3,2.74111154]
[1761902825175,0.001,3846.8,3846.3,2.74111154]
[1761902825386,1.81974415,3846.7,3846.3,2.74111154]
[1761902825543,1.81983783,3846.5,3846.3,2.74111154]
[1761902825742,1.81983783,3846.5,3846.4,0.53526231]
[1761902826154,1.81983783,3846.5,3846.3,0.1296]
[1761902826155,1.81988352,3846.4,3846.3,0.1296]
[1761902826574,1.82002548,3846.1,3846.0,71.54747908]
[1761902826975,1.82002548,3846.1,3846.0,71.67707908]
[1761902827254,1.82002548,3846.1,3846.0,71.54747908]
[1761902827454,1.81994962,3846.3,3846.0,71.54747908]
[1761902827656,1.82071892,3846.8,3846.0,74.15899062]
[1761902827875,1.81974762,3846.7,3846.0,74.15899062]
[1761902828771,1.81987775,3846.5,3846.0,74.15899062]
[1761902829079,1.81989841,3846.4,3846.0,74.15899062]
[1761902829287,1.81989841,3846.4,3846.1,2.61151154]
[1761902829469,0.001,3846.8,3846.1,2.61151154]
[1761902829815,1.81997816,3846.2,3846.1,2.61151154]
[1761902830572,0.001,3846.8,3846.1,2.61151154]
[1761902830784,1.81988356,3846.4,3846.1,2.61151154]
[1761902831193,0.4892,3846.8,3846.1,2.61151154]
[1761902831194,1.81997816,3846.2,3846.1,2.61151154]
[1761902831912,2.31647816,3846.2,3846.1,2.61151154]
[1761902832205,2.31647816,3846.2,3846.0,71.54747908]
[1761902832206,1.82002548,3846.1,3846.0,71.54747908]
[1761902833081,2.31652548,3846.1,3846.0,71.54747908]
[1761902834210,2.80472548,3846.1,3846.0,71.54747908]
[1761902834677,2.80392548,3846.1,3846.0,71.54747908]
[1761902835283,2.31572548,3846.1,3846.0,71.54747908]
[1761902835815,1.81992926,3846.4,3846.0,71.54747908]
[1761902836000,0.001,3846.8,3846.1,2.61151154]
[1761902836521,1.81995042,3846.3,3846.1,2.61151154]
[1761902836884,1.81974159,3846.7,3846.1,2.61151154]
[1761902837105,0.1296,3846.6,3846.1,2.61151154]
[1761902837504,1.82071592,3846.8,3846.4,0.1296]
[1761902837827,1.81974159,3846.7,3846.4,0.1296]
[1761902838128,0.4905,3846.5,3846.4,0.1296]
[1761902838431,2.31033621,3846.5,3846.4,0.1296]
[1761902838845,1.81991325,3846.4,3846.1,2.61151154]
[1761902839026,1.81991325,3846.4,3846.2,2.74111154]
[1761902839343,2.31513084,3846.3,3846.2,0.1296]
[1761902839542,2.80563084,3846.3,3846.2,0.1296]
[1761902842439,1.82002548,3846.1,3846.0,71.54747908]
[1761902842659,2.29112548,3846.1,3846.0,71.54747908]
[1761902842812,2.75142548,3846.1,3846.0,71.54747908]
[1761902843721,4.15110548,3846.1,3846.0,71.54747908]
[1761902848235,2.75142548,3846.1,3846.0,71.54747908]
[1761902848840,2.29112548,3846.1,3846.0,71.54747908]
[1761902849000,2.75142548,3846.1,3846.0,71.54747908]
[1761902849201,1.82002548,3846.1,3846.0,71.54747908]
[1761902849636,2.29112548,3846.1,3846.0,71.54747908]
[1761902849836,2.75142548,3846.1,3846.0,71.54747908]
[1761902850021,2.29112548,3846.1,3846.0,71.54747908]
[1761902850341,2.75142548,3846.1,3846.0,71.54747908]
[1761902852353,2.29112548,3846.1,3846.0,71.54747908]
[1761902852660,1.82002548,3846.1,3846.0,71.54747908]
[1761902854826,2.29112548,3846.1,3846.0,71.54747908]
[1761902855156,1.82002548,3846.1,3846.0,71.54747908]
[1761902855861,2.29112548,3846.1,3846.0,71.54747908]
[1761902858162,1.82002548,3846.1,3846.0,71.54747908]
[1761902859746,1.81922548,3846.1,3846.0,71.54747908]
[1761902860579,1.82022548,3846.1,3846.0,71.54747908]
[1761902860778,2.29132548,3846.1,3846.0,71.54747908]
[1761902861582,2.75162548,3846.1,3846.0,71.54747908]
[1761902865988,1.94982548,3846.1,3846.0,71.54747908]
[1761902866990,1.82022548,3846.1,3846.0,71.54747908]
[1761902869057,1.82022548,3846.1,3846.0,74.15899062]
[1761902872593,0.001,3846.1,3846.0,74.15899062]
[1761902872763,1.82102548,3846.1,3846.0,74.28859062]
[1761902875506,0.001,3846.1,3846.0,74.28859062]
[1761902875678,1.82102548,3846.1,3846.0,74.28859062]
[1761902880421,0.001,3846.1,3846.0,74.28859062]
[1761902880978,0.001,3846.1,3846.0,75.68827062]
[1761902881179,0.001,3846.1,3846.0,77.50834342]
[1761902881387,0.001,3846.1,3846.0,77.64422704]
[1761902881902,0.001,3846.1,3846.0,78.04973104]
[1761902883382,0.001,3846.1,3846.0,87.79264968]
[1761902884392,0.001,3846.1,3846.0,82.92119036]
[1761902884984,0.0002,3846.1,3846.0,82.92119036]
[1761902886215,0.0002,3846.1,3846.0,76.22965824]
[1761902886421,0.0002,3846.1,3846.0,78.04973104]
[1761902886824,0.0002,3846.1,3846.0,75.82415424]
[1761902887419,0.0002,3846.1,3846.0,75.68827062]
[1761902889648,0.0002,3846.1,3846.0,74.28859062]
[1761902890168,7.6036848,3846.1,3846.0,71.54747908]
[1761902890372,2.73222548,3846.1,3846.0,71.54747908]
[1761902890548,0.4506,3846.1,3846.0,71.54747908]
[1761902890862,0.0002,3846.1,3846.0,71.54747908]
[1761902891025,0.0002,3846.1,3846.0,74.15899062]
[1761902898720,0.0002,3846.1,3846.0,77.37874342]
[1761902898926,0.0002,3846.1,3846.0,77.51462796]
[1761902900255,0.0002,3846.1,3846.0,77.64422796]
[1761902902656,0.0002,3846.1,3846.0,75.82415516]
[1761902903061,0.0002,3846.1,3846.0,77.64422796]
[1761902905293,0.0002,3846.1,3846.0,49.33906023]
[1761902905294,7.89095182,3846.1,3846.0,49.33906023]
[1761902905587,7.6274848,3846.1,3846.0,49.33906023]
[1761902905790,2.75602548,3846.1,3846.0,49.33906023]
[1761902906154,0.0002,3846.1,3846.0,54.49101955]
[1761902906458,0.0002,3846.1,3846.0,56.82203109]
[1761902906658,0.4738,3846.1,3846.0,51.95057177]
[1761902906963,0.4738,3846.1,3846.0,49.33906023]
[1761902908290,0.0002,3846.1,3846.0,49.33906023]
[1761902908656,0.4738,3846.1,3846.0,49.33906023]
[1761902910256,0.001,3846.5,3846.0,49.33906023]
[1761902910457,2.28303664,3846.5,3846.0,49.61956023]
[1761902910885,2.28303664,3846.5,3846.1,2.61151154]
[1761902911458,0.001,3846.5,3846.1,2.7777119]
[1761902911787,0.001,3846.5,3846.4,0.2805]
[1761902911968,0.001,3846.5,3846.1,7.62317086]
[1761902912168,0.001,3846.5,3846.2,2.61151154]
[1761902912487,0.001,3846.5,3846.3,0.02599901]
[1761902915295,0.001,3846.5,3846.4,0.1296]
[1761902915974,0.001,3846.5,3846.4,5.28155932]
[1761902916173,0.001,3846.5,3846.4,5.56205932]
[1761902916397,0.001,3846.5,3846.4,7.46370163]
[1761902916903,0.001,3846.5,3846.4,7.18320163]
[1761902917571,0.001,3846.5,3846.4,7.46370163]
[1761902920019,0.001,3846.5,3846.4,7.18320163]
[1761902920214,0.001,3846.5,3846.4,8.58288163]
[1761902920412,0.001,3846.5,3846.4,10.68326515]
[1761902921618,0.4746,3846.5,3846.4,1.90164231]
[1761902921913,0.9368,3846.5,3846.1,1.53555313]
[1761902922214,0.4736,3846.3,3846.1,1.53555313]
[1761902923085,0.4736,3846.3,3846.1,1.39968]
[1761902923832,0.4736,3846.2,3846.1,1.39968]
[1761902923997,0.4736,3846.2,3846.1,4.01119154]
[1761902924192,0.4622,3846.4,3846.1,4.01119154]
[1761902924399,0.001,3846.5,3846.1,4.01119154]
[1761902924733,0.001,3846.5,3846.2,0.02599968]
[1761902925030,0.001,3846.5,3846.4,4.87145932]
[1761902925229,0.001,3846.5,3846.4,6.23884664]
[1761902925396,0.001,3846.5,3846.4,1.36738732]
[1761902926000,0.4746,3846.5,3846.2,0.1402]
[1761902927319,0.001,3846.5,3846.4,0.2805]
[1761902927742,0.001,3846.5,3846.2,0.02599968]
[1761902928352,0.001,3846.5,3846.1,4.01119154]
[1761902929638,0.4632,3846.5,3846.1,4.01119154]
[1761902929834,0.001,3846.5,3846.2,2.61151154]
[1761902931657,0.001,3846.5,3846.4,0.1296]
[1761902932154,0.4914,3846.5,3846.4,0.1296]
[1761902935462,0.4906,3846.5,3846.4,0.1296]
[1761902936475,0.0002,3846.5,3846.4,0.1296]
[1761902936826,0.4906,3846.5,3846.4,0.1296]
[1761902937031,0.9827,3846.5,3846.4,0.1296]
[1761902937247,0.4906,3846.5,3846.4,0.1296]
[1761902939362,0.0002,3846.5,3846.4,0.1296]
[1761902941970,0.9827,3846.5,3846.4,0.1296]
[1761902942692,0.0002,3846.5,3846.4,0.4101]
[1761902942841,0.0002,3846.5,3846.4,0.885798]
[1761902943043,0.0002,3846.5,3846.4,0.91179633]
[1761902943653,0.0002,3846.5,3846.4,2.45117985]
[1761902943873,0.0002,3846.5,3846.4,4.13135985]
[1761902944777,0.0002,3846.5,3846.4,4.53686385]
[1761902946163,0.0002,3846.5,3846.4,2.690982]
[1761902946375,0.0002,3846.5,3846.4,1.724478]
[1761902946677,0.0002,3846.5,3846.4,2.004978]
[1761902948079,0.0002,3846.5,3846.4,1.724478]
[1761902949201,0.4906,3846.5,3846.4,0.1296]
[1761902949403,0.4906,3846.5,3846.2,0.02599968]
[1761902950573,0.4906,3846.5,3846.1,1.40168]
[1761902950772,0.9827,3846.5,3846.1,1.40168]
[1761902951169,0.0002,3846.5,3846.4,0.2805]
[1761902951375,0.0002,3846.5,3846.4,1.17960799]
[1761902952204,0.0002,3846.5,3846.4,0.2805]
[1761902952376,0.0002,3846.5,3846.4,0.30649833]
[1761902952773,0.0002,3846.5,3846.4,0.30849833]
[1761902953902,0.0002,3846.5,3846.4,2.12838185]
[1761902954103,0.0002,3846.5,3846.4,0.30849833]
[1761902954309,0.0002,3846.5,3846.4,0.88558015]
[1761902954882,0.0002,3846.5,3846.4,0.85958182]
[1761902955203,0.4906,3846.5,3846.4,0.002]
[1761902955408,0.9827,3846.5,3846.4,0.002]
[1761902955581,0.4906,3846.5,3846.4,0.002]
[1761902955769,0.9827,3846.5,3846.4,0.002]
[1761902959295,0.9827,3846.5,3846.4,0.1316]
[1761902960614,0.9819,3846.5,3846.4,0.1316]
[1761902961287,0.4898,3846.5,3846.4,0.002]
[1761902961490,0.001,3846.8,3846.4,0.002]
[1761902961678,0.496,3846.5,3846.4,0.002]
[1761902962321,0.9636,3846.5,3846.4,0.002]